fUSD/lending_fUSD_20250105
["ID","MTS","AMOUNT","RATE_DAILY","PERIOD"]
[347788459,1736107847783,-500.0,0.00011181,2]
[347788460,1736107847793,-367.828284,0.00011181,2]
[347788461,1736107847802,-1027.46,0.00011181,2]
[347788462,1736107847811,-471.542495,0.00011181,2]
[347788463,1736107847820,-500.0,0.00011181,2]
[347788464,1736107847829,-910.54,0.00011181,2]
[347788465,1736107847840,-592.19,0.00011181,2]
[347788466,1736107847849,-500.0,0.00011181,2]
[347788467,1736107847858,-1138.14,0.00011181,2]
[347788468,1736107847867,-1090.41,0.00011181,2]
[347788469,1736107847876,-1045.62,0.00011181,2]
[347788470,1736107847885,-150.0,0.00011222,2]
[347788471,1736107847896,-396.28832133,0.00011264,2]
[347788472,1736107847906,-694.73,0.00011267,2]
[347788473,1736107847916,-500.0,0.00011267,2]
[347788474,1736107847925,-834.3,0.00011267,2]
[347788475,1736107847936,-500.0,0.00011267,2]
[347788476,1736107847948,-594.37,0.00011267,2]
[347788477,1736107847958,-500.0,0.00011267,2]
[347788478,1736107847967,-1087.46,0.00011267,2]
[347788479,1736107847979,-500.0,0.00011267,2]
[347788480,1736107847990,-500.0,0.00011267,2]
[347788481,1736107848000,-1478.81,0.00011267,2]
[347788482,1736107848009,-500.0,0.00011267,2]
[347788483,1736107848019,-500.0,0.00011267,2]
[347788484,1736107848028,-500.0,0.00011267,2]
[347788485,1736107848037,-500.0,0.00011268,2]
[347788486,1736107848046,-500.0,0.00011268,2]
[347788487,1736107848055,-500.0,0.00011268,2]
[347788488,1736107848064,-500.0,0.00011268,2]
[347788489,1736107848074,-500.0,0.00011268,2]
[347788490,1736107848083,-500.0,0.00011268,2]
[347788491,1736107848092,-500.0,0.00011268,2]
[347788492,1736107848102,-500.0,0.00011268,2]
[347788493,1736107848111,-500.0,0.00011268,2]
[347788494,1736107848120,-500.0,0.00011268,2]
[347788495,1736107848129,-500.0,0.00011268,2]
[347788496,1736107848138,-884.87,0.00011268,2]
[347788497,1736107848147,-560.71,0.00011268,2]
[347788498,1736107848156,-500.0,0.00011268,2]
[347788499,1736107848166,-500.0,0.00011268,2]
[347788500,1736107848175,-1905.91,0.00011268,2]
[347788501,1736107848185,-500.0,0.00011268,2]
[347788502,1736107848194,-500.0,0.00011268,2]
[347788503,1736107848204,-500.0,0.00011268,2]
[347788504,1736107848213,-1313.11,0.00011268,2]
[347788505,1736107848222,-500.0,0.00011268,2]
[347788506,1736107848231,-500.0,0.00011268,2]
[347788507,1736107848240,-500.0,0.00011268,2]
[347788508,1736107848249,-361.28,0.00011268,2]
[347788509,1736107848258,-500.0,0.00011268,2]
[347788510,1736107848267,-862.94,0.00011268,2]
[347788511,1736107848277,-500.0,0.00011268,2]
[347788512,1736107848286,-500.0,0.00011268,2]
[347788513,1736107848295,-1294.03,0.00011268,2]
[347788514,1736107848304,-500.0,0.00011268,2]
[347788515,1736107848313,-500.0,0.00011268,2]
[347788516,1736107848323,-532.46,0.00011268,2]
[347788517,1736107848332,-500.0,0.00011268,2]
[347788518,1736107848344,-29999.99,0.00011281,2]
[347788519,1736107848353,-2730.11642868,0.00011286,2]
[347788520,1736107848363,-500.0,0.000113,2]
[347788521,1736107848372,-500.0,0.000113,2]
[347788522,1736107848381,-500.0,0.000113,2]
[347788523,1736107848392,-500.0,0.000113,2]
[347788524,1736107848400,-500.0,0.000113,2]
[347788525,1736107848410,-500.0,0.000113,2]
[347788526,1736107848420,-500.0,0.000113,2]
[347788527,1736107848431,-500.0,0.000113,2]
[347788528,1736107848440,-500.0,0.000113,2]
[347788529,1736107848449,-500.0,0.000113,2]
[347788530,1736107848459,-500.0,0.000113,2]
[347788531,1736107848468,-500.0,0.000113,2]
[347788532,1736107848477,-500.0,0.000113,2]
[347788533,1736107848486,-500.0,0.000113,2]
[347788534,1736107848496,-500.0,0.000113,2]
[347788535,1736107848505,-500.0,0.000113,2]
[347788536,1736107848515,-393.63,0.000113,2]
[347788537,1736107848524,-500.0,0.000113,2]
[347788538,1736107848534,-500.0,0.000113,2]
[347788539,1736107848543,-500.0,0.000113,2]
[347788540,1736107848552,-500.0,0.000113,2]
[347788541,1736107848561,-500.0,0.000113,2]
[347788542,1736107848570,-500.0,0.000113,2]
[347788543,1736107848580,-500.0,0.000113,2]
[347788544,1736107848589,-500.0,0.000113,2]
[347788545,1736107848599,-500.0,0.000113,2]
[347788546,1736107848609,-500.0,0.000113,2]
[347788547,1736107848618,-500.0,0.000113,2]
[347788548,1736107848628,-500.0,0.000113,2]
[347788549,1736107848638,-500.0,0.000113,2]
[347788550,1736107848647,-500.0,0.000113,2]
[347788551,1736107848657,-500.0,0.000113,2]
[347788552,1736107848666,-500.0,0.000113,2]
[347788553,1736107848675,-500.0,0.000113,2]
[347788554,1736107848685,-500.0,0.000113,2]
[347788555,1736107848694,-500.0,0.000113,2]
[347788556,1736107848703,-500.0,0.000113,2]
[347788557,1736107848713,-500.0,0.000113,2]
[347788558,1736107848722,-500.0,0.000113,2]
[347788559,1736107848731,-500.0,0.000113,2]
[347788560,1736107848740,-500.0,0.000113,2]
[347788561,1736107848750,-500.0,0.000113,2]
[347788562,1736107848760,-500.0,0.000113,2]
[347788563,1736107848769,-500.0,0.000113,2]
[347788564,1736107848779,-500.0,0.000113,2]
[347788565,1736107848789,-500.0,0.000113,2]
[347788566,1736107848799,-500.0,0.000113,2]
[347788567,1736107848809,-500.0,0.000113,2]
[347788568,1736107848819,-500.0,0.000113,2]
[347788569,1736107848829,-500.0,0.000113,2]
[347788570,1736107848839,-500.0,0.000113,2]
[347788571,1736107848849,-500.0,0.000113,2]
[347788572,1736107848859,-500.0,0.000113,2]
[347788573,1736107848869,-500.0,0.000113,2]
[347788574,1736107848879,-500.0,0.000113,2]
[347788575,1736107848889,-500.0,0.000113,2]
[347788576,1736107848899,-500.0,0.000113,2]
[347788577,1736107848910,-500.0,0.000113,2]
[347788578,1736107848921,-500.0,0.000113,2]
[347788579,1736107848932,-500.0,0.000113,2]
[347788580,1736107848942,-500.0,0.000113,2]
[347788581,1736107848952,-595.25,0.000113,2]
[347788582,1736107848962,-500.0,0.000113,2]
[347788583,1736107848972,-150.0,0.0001131,2]
[347788584,1736107848982,-437.68,0.00011342,2]
[347788585,1736107848993,-771.75,0.00011342,2]
[347788586,1736107849003,-437.68,0.00011342,2]
[347788587,1736107849012,-771.75,0.00011342,2]
[347788588,1736107849022,-771.75,0.00011342,2]
[347788589,1736107849032,-436.82,0.00011342,2]
[347788590,1736107849041,-1000.0,0.00011355,2]
[347788591,1736107849051,-500.0,0.00011368,2]
[347788592,1736107849060,-555.04,0.00011368,2]
[347788593,1736107849070,-588.67,0.00011368,2]
[347788594,1736107849079,-500.0,0.00011368,2]
[347788595,1736107849089,-1433.58,0.00011368,2]
[347788596,1736107849098,-568.83,0.00011368,2]
[347788597,1736107849108,-1126.88,0.00011368,2]
[347788598,1736107849117,-583.26,0.00011368,2]
[347788599,1736107849127,-820.19,0.00011368,2]
[347788600,1736107849136,-864.2,0.00011368,2]
[347788601,1736107849145,-986.93,0.00011368,2]
[347788602,1736107849156,-500.0,0.00011368,2]
[347788603,1736107849166,-500.0,0.00011369,2]
[347788604,1736107849175,-500.0,0.00011369,2]
[347788605,1736107849185,-500.0,0.00011369,2]
[347788606,1736107849195,-660.89,0.00011369,2]
[347788607,1736107849204,-500.0,0.00011369,2]
[347788608,1736107849214,-775.75,0.00011369,2]
[347788609,1736107849224,-500.0,0.00011369,2]
[347788610,1736107849233,-628.39,0.00011369,2]
[347788611,1736107849243,-500.0,0.00011369,2]
[347788612,1736107849252,-1015.85,0.00011369,2]
[347788613,1736107849262,-500.0,0.00011369,2]
[347788614,1736107849271,-1159.49,0.00011369,2]
[347788615,1736107849281,-580.95,0.00011369,2]
[347788616,1736107849290,-150.0,0.00011397,2]
[347788617,1736107849300,-2730.11642868,0.00011421,2]
[347788618,1736107849310,-500.0,0.0001144,2]
[347788619,1736107849318,-552.7,0.00011455,2]
[347788620,1736107849328,-907.58,0.00011455,2]
[347788621,1736107849338,-500.0,0.00011455,2]
[347788622,1736107849350,-820.39,0.00011455,2]
[347788623,1736107849359,-500.0,0.00011455,2]
[347788624,1736107849369,-500.0,0.00011455,2]
[347788625,1736107849379,-524.47,0.00011455,2]
[347788626,1736107849389,-528.71,0.00011455,2]
[347788627,1736107849399,-500.0,0.00011455,2]
[347788628,1736107849408,-367.828284,0.00011455,2]
[347788629,1736107849419,-1027.46,0.00011455,2]
[347788630,1736107849429,-471.542495,0.00011455,2]
[347788631,1736107849439,-500.0,0.00011455,2]
[347788632,1736107849448,-910.54,0.00011455,2]
[347788633,1736107849458,-592.19,0.00011455,2]
[347788634,1736107849467,-500.0,0.00011455,2]
[347788635,1736107849477,-1138.14,0.00011455,2]
[347788636,1736107849487,-1090.41,0.00011455,2]
[347788637,1736107849496,-1045.62,0.00011455,2]
[347788638,1736107849506,-150.0,0.00011456,2]
[347788639,1736107849516,-150.0,0.00011485,2]
[347788640,1736107849525,-2751.0,0.00011507,2]
[347788641,1736107849535,-900.0,0.00011538,2]
[347788642,1736107849544,-694.73,0.00011541,2]
[347788643,1736107849554,-500.0,0.00011541,2]
[347788644,1736107849564,-834.3,0.00011541,2]
[347788645,1736107849573,-360.7337052,0.00011541,2]
[347788646,1736107849812,-139.2662948,0.00011541,2]
[347788647,1736107849823,-211.1937052,0.00011541,2]
[347788648,1736107849837,-383.1762948,0.00011541,2]
[347788649,1736107849847,-89.8787052,0.00011541,2]
[347788650,1736107849863,-410.1212948,0.00011541,2]
[347788651,1736107849873,-639.49211724,0.00011541,2]
[347788652,1736107849886,-447.96788276,0.00011541,2]
[347788653,1736107849896,-500.0,0.00011541,2]
[347788654,1736107849906,-150.03211744,0.00011541,2]
[347788655,1736107849920,-349.96788256,0.00011541,2]
[347788656,1736107849931,-1478.81,0.00011541,2]
[347788657,1736107849941,-500.0,0.00011541,2]
[347788658,1736107849951,-500.0,0.00011541,2]
[347788659,1736107849963,-500.0,0.00011541,2]
[347788660,1736107849974,-500.0,0.00011542,2]
[347788661,1736107849984,-500.0,0.00011542,2]
[347788662,1736107849994,-500.0,0.00011542,2]
[347788663,1736107850004,-500.0,0.00011542,2]
[347788664,1736107850015,-500.0,0.00011542,2]
[347788665,1736107850025,-500.0,0.00011542,2]
[347788666,1736107850035,-500.0,0.00011542,2]
[347788667,1736107850046,-500.0,0.00011542,2]
[347788668,1736107850058,-500.0,0.00011542,2]
[347788669,1736107850070,-500.0,0.00011542,2]
[347788670,1736107850083,-500.0,0.00011542,2]
[347788671,1736107850093,-884.87,0.00011542,2]
[347788672,1736107850103,-560.71,0.00011542,2]
[347788673,1736107850114,-500.0,0.00011542,2]
[347788674,1736107850124,-500.0,0.00011542,2]
[347788675,1736107850133,-1905.91,0.00011542,2]
[347788676,1736107850143,-500.0,0.00011542,2]
[347788677,1736107850153,-500.0,0.00011542,2]
[347788678,1736107850163,-500.0,0.00011542,2]
[347788679,1736107850173,-1313.11,0.00011542,2]
[347788680,1736107850182,-500.0,0.00011542,2]
[347788681,1736107850193,-500.0,0.00011542,2]
[347788682,1736107850202,-500.0,0.00011542,2]
[347788683,1736107850212,-500.0,0.00011542,2]
[347788684,1736107850222,-862.94,0.00011542,2]
[347788685,1736107850232,-500.0,0.00011542,2]
[347788686,1736107850241,-500.0,0.00011542,2]
[347788687,1736107850252,-1294.03,0.00011542,2]
[347788688,1736107850261,-500.0,0.00011542,2]
[347788689,1736107850270,-500.0,0.00011542,2]
[347788690,1736107850280,-341.40682094,0.00011542,2]
[347788691,1736107850386,-191.05317906,0.00011542,2]
[347788692,1736107850396,-250.58682094,0.00011542,2]
[347788693,1736107850408,-249.41317906,0.00011542,2]
[347788694,1736107850418,-171.12,0.00011552,2]
[347788695,1736107850428,-2730.11642868,0.00011555,2]
[347788696,1736107850439,-150.0,0.00011573,2]
[347788697,1736107850449,-4103.76572119,0.00011607,2]
[347788698,1736107850461,-2216.90368008,0.00011607,2]
[347788699,1736107850471,-500.0,0.00011642,2]
[347788700,1736107850481,-555.04,0.00011642,2]
[347788701,1736107850491,-588.67,0.00011642,2]
[347788702,1736107850503,-500.0,0.00011642,2]
[347788703,1736107850512,-1433.58,0.00011642,2]
[347788704,1736107850522,-568.83,0.00011642,2]
[347788705,1736107850531,-1126.88,0.00011642,2]
[347788706,1736107850541,-583.26,0.00011642,2]
[347788707,1736107850551,-820.19,0.00011642,2]
[347788708,1736107850562,-864.2,0.00011642,2]
[347788709,1736107850572,-986.93,0.00011642,2]
[347788710,1736107850582,-500.0,0.00011642,2]
[347788711,1736107850592,-500.0,0.00011643,2]
[347788712,1736107850602,-500.0,0.00011643,2]
[347788713,1736107850612,-500.0,0.00011643,2]
[347788714,1736107850623,-660.89,0.00011643,2]
[347788715,1736107850633,-206.64286383,0.00011643,2]
[347788716,1736107850644,-775.75,0.00011643,2]
[347788717,1736107850655,-500.0,0.00011643,2]
[347788718,1736107850665,-628.39,0.00011643,2]
[347788719,1736107850676,-500.0,0.00011643,2]
[347788720,1736107850689,-1015.85,0.00011643,2]
[347788721,1736107850700,-500.0,0.00011643,2]
[347788722,1736107850941,-1159.49,0.00011643,2]
[347788723,1736107850962,-580.95,0.00011643,2]
[347788724,1736107850972,-150.0,0.0001166,2]
[347788725,1736107850982,-150.0,0.0001166,2]
[347788726,1736107850991,-463.457,0.0001168,2]
[347788727,1736107851000,-2730.11642868,0.0001169,2]
[347788728,1736107851010,-6.70996741,0.00011714,2]
[347788729,1736107851022,-493.29003259,0.00011714,2]
[347788730,1736107851031,-552.7,0.00011729,2]
[347788731,1736107851041,-907.58,0.00011729,2]
[347788732,1736107851051,-500.0,0.00011729,2]
[347788733,1736107851061,-820.39,0.00011729,2]
[347788734,1736107851071,-500.0,0.00011729,2]
[347788735,1736107851080,-500.0,0.00011729,2]
[347788736,1736107851090,-524.47,0.00011729,2]
[347788737,1736107851100,-528.71,0.00011729,2]
[347788738,1736107851110,-500.0,0.00011729,2]
[347788739,1736107851119,-367.828284,0.00011729,2]
[347788740,1736107851129,-1027.46,0.00011729,2]
[347788741,1736107851139,-471.542495,0.00011729,2]
[347788742,1736107851149,-500.0,0.00011729,2]
[347788743,1736107851158,-910.54,0.00011729,2]
[347788744,1736107851168,-592.19,0.00011729,2]
[347788745,1736107851178,-500.0,0.00011729,2]
[347788746,1736107851192,-1138.14,0.00011729,2]
[347788747,1736107851202,-1090.41,0.00011729,2]
[347788748,1736107851212,-1045.62,0.00011729,2]
[347788749,1736107851222,-150.0,0.00011748,2]
[347788750,1736107851231,-160.62,0.00011791,2]
[347788751,1736107851241,-200.0,0.000118,2]
[347788752,1736107851251,-694.73,0.00011815,2]
[347788753,1736107851261,-500.0,0.00011815,2]
[347788754,1736107851271,-834.3,0.00011815,2]
[347788755,1736107851281,-500.0,0.00011815,2]
[347788756,1736107851291,-594.37,0.00011815,2]
[347788757,1736107851300,-500.0,0.00011815,2]
[347788758,1736107851310,-1087.46,0.00011815,2]
[347788759,1736107851320,-500.0,0.00011815,2]
[347788760,1736107851330,-500.0,0.00011815,2]
[347788761,1736107851340,-1478.81,0.00011815,2]
[347788762,1736107851351,-500.0,0.00011815,2]
[347788763,1736107851360,-500.62476184,0.00011815,2]
[347788764,1736107851370,-500.0,0.00011816,2]
[347788765,1736107851380,-115.59413079,0.00011816,2]
[347788766,1736107851398,-143.11902705,0.00011816,2]
[347788767,1736107851406,-500.0,0.00011816,2]
[347788768,1736107851415,-500.0,0.00011816,2]
[347788769,1736107851425,-500.0,0.00011816,2]
[347788770,1736107851436,-500.0,0.00011816,2]
[347788771,1736107851446,-70.03726438,0.00011816,2]
[347788772,1736107851467,-429.96273562,0.00011816,2]
[347788773,1736107851476,-500.0,0.00011816,2]
[347788774,1736107851485,-170.49105142,0.00011816,2]
[347788775,1736107851495,-500.0,0.00011816,2]
[347788776,1736107851504,-500.0,0.00011816,2]
[347788777,1736107851513,-884.87,0.00011816,2]
[347788778,1736107851523,-560.71,0.00011816,2]
[347788779,1736107851532,-500.0,0.00011816,2]
[347788780,1736107851541,-511.97356723,0.00011816,2]
[347788781,1736107851551,-1905.91,0.00011816,2]
[347788782,1736107851560,-500.0,0.00011816,2]
[347788783,1736107851569,-500.0,0.00011816,2]
[347788784,1736107851579,-500.0,0.00011816,2]
[347788785,1736107851588,-1313.11,0.00011816,2]
[347788786,1736107851596,-500.0,0.00011816,2]
[347788787,1736107851606,-500.0,0.00011816,2]
[347788788,1736107851615,-500.0,0.00011816,2]
[347788789,1736107851625,-500.0,0.00011816,2]
[347788790,1736107851634,-862.94,0.00011816,2]
[347788791,1736107851643,-500.0,0.00011816,2]
[347788792,1736107851653,-500.0,0.00011816,2]
[347788793,1736107851664,-1294.03,0.00011816,2]
[347788794,1736107851673,-500.0,0.00011816,2]
[347788795,1736107851685,-500.0,0.00011816,2]
[347788796,1736107851694,-532.46,0.00011816,2]
[347788797,1736107851703,-500.0,0.00011816,2]
[347788798,1736107851714,-2730.11642868,0.00011824,2]
[347788799,1736107851723,-150.0,0.00011836,2]
[347788800,1736107851733,-150.0,0.00011865,2]
[347788801,1736107851744,-500.0,0.00011916,2]
[347788802,1736107851754,-555.04,0.00011916,2]
[347788803,1736107851763,-588.67,0.00011916,2]
[347788804,1736107851773,-500.0,0.00011916,2]
[347788805,1736107851784,-1433.58,0.00011916,2]
[347788806,1736107851794,-568.83,0.00011916,2]
[347788807,1736107851804,-1126.88,0.00011916,2]
[347788808,1736107851814,-583.26,0.00011916,2]
[347788809,1736107851823,-820.19,0.00011916,2]
[347788810,1736107851833,-864.2,0.00011916,2]
[347788811,1736107851842,-76.62715224,0.00011916,2]
[347788820,1736108744247,5866.60256133,7.12e-05,2]
[347788821,1736108744269,10000.0,7.12e-05,2]
[347788822,1736108744292,10000.0,7.12e-05,2]
[347788823,1736108744315,3088.35117337,7.12e-05,2]
[347788849,1736108935623,200.0,7.084e-05,2]
[347788867,1736109031889,-294.0,8.219e-05,2]
[347788868,1736109031905,-1111.32,8.219e-05,2]
[347788869,1736109031917,-250.0,9.052e-05,2]
[347788870,1736109031928,-250.0,9.095e-05,2]
[347788871,1736109031942,-300.0,9.136e-05,2]
[347788872,1736109031953,-14770.71235424,9.137e-05,2]
[347788873,1736109031967,-915.47591036,9.137e-05,2]
[347788874,1736109031985,-765.49497774,9.137e-05,2]
[347788875,1736109032016,-1822.93675766,9.137e-05,2]
[347788876,1736109032030,-250.0,9.219e-05,2]
[347788877,1736109032041,-1000.0,9.247e-05,2]
[347788878,1736109032052,-300.0,9.273e-05,2]
[347788879,1736109032064,-166.01,9.433e-05,2]
[347788880,1736109032075,-166.01,9.451e-05,2]
[347788881,1736109032086,-200.0,9.505e-05,2]
[347788882,1736109032099,-500.0,9.898e-05,2]
[347788883,1736109032110,-487.3629682,9.898e-05,2]
[347788884,1736109032140,-12.6370318,9.898e-05,2]
[347788885,1736109032152,-500.0,9.898e-05,2]
[347788886,1736109032166,-500.0,9.898e-05,2]
[347788887,1736109032178,-500.0,9.898e-05,2]
[347788888,1736109032189,-663.83,9.898e-05,2]
[347788889,1736109032201,-531.66,9.898e-05,2]
[347788890,1736109032212,-817.84,9.898e-05,2]
[347788891,1736109032223,-882.33,9.898e-05,2]
[347788892,1736109032233,-500.0,9.898e-05,2]
[347788893,1736109032244,-500.0,9.898e-05,2]
[347788894,1736109032254,-532.72,9.898e-05,2]
[347788895,1736109032265,-500.0,9.898e-05,2]
[347788896,1736109032275,-500.0,9.898e-05,2]
[347788897,1736109032286,-500.0,9.898e-05,2]
[347788898,1736109032298,-500.0,9.898e-05,2]
[347788899,1736109032311,-1000.0,9.9e-05,2]
[347788900,1736109032323,-2456.12,9.9e-05,2]
[347788901,1736109032333,-2548.10866676,9.966e-05,2]
[347788902,1736109032343,-26804.27722311,9.988e-05,2]
[347788903,1736109032353,-500.0,9.998e-05,2]
[347788904,1736109032363,-500.0,9.999e-05,2]
[347788905,1736109032373,-170.35160954,9.999e-05,2]
[347788906,1736109032384,-500.0,9.999e-05,2]
[347788907,1736109032395,-151.24709819,0.0001,2]
[347788908,1736109032408,-3520.62702259,0.0001,2]
[347788909,1736109032420,-259.47,0.0001,2]
[347788910,1736109032431,-323971.62160665,0.0001,2]
[347788911,1736109035188,-14917.14891111,0.0001,2]
[347788952,1736109037672,-284.16973971,9.999e-05,2]
[347788954,1736109037683,-15362.74922699,0.0001,2]
[347788955,1736109037779,-3873.38091078,0.0001,2]
[347788956,1736109037835,-4020891.53092718,0.0001,2]
[347788957,1736109037848,-2399.6,0.0001,2]
[347788958,1736109037862,-2574.62213755,0.0001,2]
[347788960,1736109038193,-347.31267172,0.0001,2]
[347788961,1736109038205,-6733.11564634,0.0001,2]
[347788962,1736109038217,-26766.22732739,0.0001,2]
[347788963,1736109038229,-1000.29960275,0.0001,2]
[347788964,1736109038241,-19281.57445,0.0001,2]
[347788972,1736109040068,-3299.48277377,0.0001,2]
[347788973,1736109040080,-10834.00000001,0.0001,2]
[347788974,1736109040094,-61037.64,0.0001,2]
[347788992,1736109042912,-5914.92,0.0001,2]
[347788993,1736109043021,-3810.49927642,0.0001,2]
[347789007,1736109045662,-18460.91688686,0.0001,2]
[347789008,1736109045718,-377.7102407,0.0001,2]
[347789009,1736109045838,-868.8542676,0.0001,2]
[347789010,1736109045850,-1829.06945227,0.0001,2]
[347789011,1736109045885,-49288.0,0.0001,2]
[347789013,1736109055705,1000.0,0.0002,120]
[347789043,1736110138145,-1361.02,8.219e-05,2]
[347789044,1736110138173,-198.79,8.971e-05,2]
[347789045,1736110144984,1000.0,0.0002,120]
[347789052,1736110231887,-1000.0,9.021e-05,2]
[347789053,1736110231896,-212.52,9.023e-05,2]
[347789054,1736110231906,-18.23953,9.061e-05,2]
[347789055,1736110231919,-231.76047,9.061e-05,2]
[347789056,1736110231929,-223.30953,9.118e-05,2]
[347789057,1736110231999,-26.69047,9.118e-05,2]
[347789058,1736110232008,-153.52,9.147e-05,2]
[347789059,1736110232018,-825.9448266,9.157e-05,2]
[347789060,1736110232029,-3841.6551734,9.157e-05,2]
[347789061,1736110232039,-164.12,9.231e-05,2]
[347789062,1736110232050,-449.94,9.311e-05,2]
[347789063,1736110232059,-183.69,9.445e-05,2]
[347789064,1736110232069,-243.99082832,9.773e-05,2]
[347789065,1736110232079,-243.99082832,9.773e-05,2]
[347789066,1736110232088,-243.99082832,9.774e-05,2]
[347789067,1736110232099,-243.99082832,9.776e-05,2]
[347789068,1736110232110,-243.99082832,9.791e-05,2]
[347789069,1736110232119,-3191.89708499,9.799e-05,2]
[347789070,1736110232156,-2272.67291501,9.799e-05,2]
[347789071,1736110232166,-150.99,9.799e-05,2]
[347789072,1736110232176,-5280.56031579,9.799e-05,2]
[347789073,1736110232189,-1479.09968421,9.799e-05,2]
[347789074,1736110232199,-243.99082832,9.8e-05,2]
[347789075,1736110232208,-4207.0,9.8e-05,2]
[347789076,1736110232219,-2785.823,9.8e-05,2]
[347789077,1736110232228,-168.158,9.8e-05,2]
[347789078,1736110232238,-5408.6033,9.899e-05,2]
[347789079,1736110232247,-2500.0,9.899e-05,2]
[347789080,1736110232256,-1000.0,9.9e-05,2]
[347789081,1736110232266,-793.6056,9.9e-05,2]
[347789082,1736110232275,-17954.3091,9.9e-05,2]
[347789083,1736110232284,-467.2747,9.9e-05,2]
[347789084,1736110232292,-5000.0,9.9e-05,2]
[347789085,1736110232301,-500.0,9.9e-05,2]
[347789086,1736110232311,-23304.84748443,9.918e-05,2]
[347789087,1736110232320,-7468.38516378,9.941e-05,2]
[347789088,1736110232329,-440.1488,9.973e-05,2]
[347789089,1736110232338,-500.0,9.973e-05,2]
[347789090,1736110232347,-1000.0,9.99e-05,2]
[347789091,1736110232356,-1000.0,9.99e-05,2]
[347789092,1736110232366,-1000.0,9.99e-05,2]
[347789093,1736110232375,-783.0,9.99e-05,3]
[347789094,1736110232384,-1000.0,9.99e-05,2]
[347789096,1736110232393,-1000.0,9.99e-05,2]
[347789098,1736110232402,-500.0,9.998e-05,2]
[347789100,1736110232411,-500.0,9.998e-05,2]
[347789101,1736110232421,-500.0,9.998e-05,2]
[347789102,1736110232430,-500.0,9.998e-05,2]
[347789103,1736110232439,-500.0,9.998e-05,2]
[347789104,1736110232448,-500.0,9.998e-05,2]
[347789105,1736110232459,-500.0,9.998e-05,2]
[347789106,1736110232467,-500.0,9.998e-05,2]
[347789107,1736110232477,-500.0,9.998e-05,2]
[347789108,1736110232486,-500.0,9.998e-05,2]
[347789109,1736110232495,-500.0,9.998e-05,2]
[347789110,1736110232505,-495.64064443,9.998e-05,2]
[347789111,1736110232515,-297.45993122,9.998e-05,2]
[347789112,1736110232524,-500.0,9.998e-05,2]
[347789113,1736110232534,-500.0,9.998e-05,2]
[347789114,1736110232544,-500.0,9.998e-05,2]
[347789115,1736110232553,-500.0,9.998e-05,2]
[347789116,1736110232562,-500.0,9.998e-05,2]
[347789117,1736110232571,-500.0,9.998e-05,2]
[347789118,1736110232580,-500.0,9.998e-05,2]
[347789119,1736110232590,-500.0,9.998e-05,2]
[347789120,1736110232599,-500.0,9.998e-05,2]
[347789121,1736110232609,-500.0,9.998e-05,2]
[347789122,1736110232617,-500.0,9.998e-05,2]
[347789123,1736110232626,-500.0,9.998e-05,2]
[347789124,1736110232636,-500.0,9.998e-05,2]
[347789125,1736110232646,-500.0,9.998e-05,2]
[347789126,1736110232655,-500.0,9.998e-05,2]